Cogmind - Beta 10.2 @@@ ROGUE MODE // 2020.11.09 @ 20:31:27 Player: Michael Result: Destroyed by as-82600 with Assembled Rifle Performance ------------- Evolutions (0) 0 Regions Visited (4) 800 Robots Destroyed (5) 25 Value Destroyed (83) 83 Prototype IDs (23) 460 Alien Tech Used (0) 0 Bonus (300) 300 TOTAL SCORE: 1668 Bonus ------- Aligned with FarCom 300 Cogmind --------- Core Integrity 0/250 Matter 285/300 Energy 74/100 System Corruption 0% Temperature Cool (0) Movement Walking (150) Ox1 Location -9/Mines Parts ------- > --- POWER (1) -------- (None) > --- PROPULSION (2) --- Aluminum Leg Improved Aluminum Leg > --- UTILITY (2) ------ Large Storage Unit Large Storage Unit > --- WEAPON (2) ------- High-powered Shotgun > --- INVENTORY (16) --- Fission Core Light Fission Core Light Fission Core Wheel Medium Storage Unit Large Storage Unit Large Matter Pod (150) Hardened Medium Armor Plating EM Pulse Gun AWS/Autocannon Peak State ------------ > --- POWER ------------ (None) > --- PROPULSION ------- Wheel Wheel > --- UTILITY ---------- Large Storage Unit Large Storage Unit > --- WEAPON ----------- Light Assault Rifle High-powered Shotgun > --- INVENTORY -------- Fission Core Light Fission Core Light Fission Core Aluminum Leg Aluminum Leg Medium Storage Unit Large Storage Unit Large Matter Pod Large Matter Pod Hardened Medium Armor Plating EM Pulse Gun AWS/Autocannon [Rating: 13] Favorites ----------- Power None Propulsion Wheel Leg Aluminum Leg Wheel Wheel Utility Large Storage Unit Storage Large Storage Unit Weapon EM Pulse Gun Energy Gun EM Pulse Gun Ballistic Gun Light Assault Rifle Build | -11 -10 -10 -10 -9 ------- Run | Scr Mat Min Exi Min Slots Evolved . | . . . . . Power . | . . . . . Propulsion . | . . . . . Utility . | . . . . . Weapon . | . . . . . Parts Attached 17 | 5 3 3 2 4 Power . | . . . . . Engine . | . . . . . Core . | . . . . . Reactor . | . . . . . Propulsion 7 | 2 . 1 . 4 Treads . | . . . . . Leg 4 | . . . . 4 Wheel 3 | 2 . 1 . . Hover . | . . . . . Flight . | . . . . . Utility 4 | 1 2 . 1 . Device . | . . . . . Storage 4 | 1 2 . 1 . Processor . | . . . . . Hackware . | . . . . . Protection . | . . . . . Artifact . | . . . . . Weapon 6 | 2 1 2 1 . Energy Gun 4 | 2 . 2 . . Energy Cannon . | . . . . . Ballistic Gun 2 | . 1 . 1 . Ballistic Cannon . | . . . . . Launcher . | . . . . . Special Weapon . | . . . . . Impact Weapon . | . . . . . Slashing Weapon . | . . . . . Piercing Weapon . | . . . . . Special Melee Weapon . | . . . . . Unidentified Prototypes . | . . . . . Parts Lost 6 | . . 3 . 3 Power . | . . . . . Propulsion 3 | . . 1 . 2 Utility . | . . . . . Weapon 3 | . . 2 . 1 Highest Loss Streak 3 | . . 3 . 3 Average Slot Usage (%) 78 | . 78 68 85 67 Leg 1 | . . . . 21 Wheel 26 | . 28 25 28 3 Storage 22 | . 21 14 28 28 Energy Gun 13 | . 18 14 11 . Ballistic Gun 14 | . 9 14 16 14 Naked Turns . | . . . . . Heaviest Build 36 | 8 23 19 36 36 Greatest Support 23 | 20 20 20 20 23 Greatest Overweight (x) 3 | . 1 1 1 3 Average Overweight (x) . | . . . 1 1 Largest Inventory Capacity 16 | 6 12 10 16 16 Average Capacity 12 | 5 8 10 15 16 Most Carried 15 | 5 10 10 14 15 Average Carried 9 | 2 7 8 11 13 Final Capacity 16 | 6 10 10 16 16 Final Carried 14 | 5 10 9 14 12 Class Distribution -------------------- 100% | Mutant Dominant Class ---------------- Mutant | -10/Materials Mutant | -10/Mines Mutant | -10/Exiles Mutant | -9/Mines Resources | -11 -10 -10 -10 -9 ----------- Run | Scr Mat Min Exi Min Matter Collected 361 | 248 22 41 20 30 Remotely . | . . . . . Salvage Created 188 | . 128 60 . . Parts 6 | . 5 1 . . Haulers Intercepted . | . . . . . Recyclers Shooed . | . . . . . Parts Field Recycled . | . . . . . Retrieved Matter . | . . . . . Parts Self-Destructed . | . . . . . Prevented . | . . . . . Kills | -11 -10 -10 -10 -9 ------- Run | Scr Mat Min Exi Min Combat Hostiles Destroyed 4 | . 3 1 . . Guns 3 | . 2 1 . . AOE 1 | . 1 . . . Classes Destroyed 3 | . 2 1 . . Recycler 1 | . 1 . . . Swarmer 3 | . 3 . . . Grunt 1 | . . 1 . . Best Kill Streak 4 | . 4 1 . . Combat Bots Only 3 | . 3 1 . . Max Kills in Single Turn 2 | . 2 1 . . Gunslinging . | . . . . . Exploded 1 | . 1 . . . Melee . | . . . . . Uniques/NPCs Destroyed . | . . . . . Combat | -11 -10 -10 -10 -9 -------- Run | Scr Mat Min Exi Min Damage Taken 911 | . 58 371 . 482 Core 252 | . . 73 . 179 Absorbed by Shields . | . . . . . Core Remaining (%) 100 | 100 . . . . Volleys Fired 21 | . 5 16 . . Largest 2 | . 1 2 . . Hottest 60 | . 40 60 . . Shots Fired 37 | . 5 32 . . Gun 37 | . 5 32 . . Cannon . | . . . . . Launcher . | . . . . . Special . | . . . . . Kinetic 16 | . . 16 . . Thermal . | . . . . . Explosive . | . . . . . Electromagnetic 21 | . 5 16 . . Robot Hit Streak 5 | . 1 5 . . Robot Miss Streak 2 | . 2 2 . . Penetration Max . | . . . . . Secondary Targets . | . . . . . Shots Hit Robots 22 | . 2 20 . . Core Hits 8 | . 4 4 . . Critical Hits . | . . . . . Critical Kills . | . . . . . Critical Parts Destroyed . | . . . . . Melee Attacks . | . . . . . Impact . | . . . . . Slashing . | . . . . . Piercing . | . . . . . Sneak Attacks . | . . . . . Combat Hostiles . | . . . . . Follow-up Attacks . | . . . . . Damage Inflicted 274 | . 86 188 . . Guns 222 | . 34 188 . . Cannons . | . . . . . Explosions 52 | . 52 . . . Melee . | . . . . . Ramming . | . . . . . Kinetic 45 | . . 45 . . Thermal 52 | . 52 . . . Explosive . | . . . . . Electromagnetic 177 | . 34 143 . . Impact . | . . . . . Slashing . | . . . . . Piercing . | . . . . . Highest Corruption . | . . . . . Average Corruption . | . . . . . Corruption Purged . | . . . . . Overload Shots . | . . . . . Overflow Damage . | . . . . . Projectiles . | . . . . . Explosions . | . . . . . Melee . | . . . . . Knockbacks . | . . . . . Impact . | . . . . . Kinetic . | . . . . . Secondary . | . . . . . Self-Inflicted Damage . | . . . . . Shots . | . . . . . Rammed . | . . . . . Targets Rammed . | . . . . . Kicked . | . . . . . Crushed . | . . . . . Highest Temperature 59 | . . 59 . . Average Temperature 36 | . . 36 . . Received Heat Transfer 222 | . . 216 . 6 Siege Activations . | . . . . . Robots Corrupted . | . . . . . Combat Hostiles . | . . . . . Parts Fried . | . . . . . Impact Corruptions . | . . . . . Robots Melted . | . . . . . Combat Hostiles . | . . . . . Parts Melted . | . . . . . Heat Transferred 100 | . 100 . . . Parts Sabotaged . | . . . . . Parts Stolen . | . . . . . Parts Stripped . | . . . . . Power Chain Reactions 1 | . 1 . . . Missiles Intercepted . | . . . . . Alert | -11 -10 -10 -10 -9 ------- Run | Scr Mat Min Exi Min Peak Influence 159 | . 159 83 . 5 Initial 61 | . . 61 . . Average 72 | . 106 73 . . Maximum Alert Level . | . . . . . Low Security (%) 100 | 100 100 100 . 100 Level 1 . | . . . . . Level 2 . | . . . . . Level 3 . | . . . . . Level 4 . | . . . . . Level 5 . | . . . . . High Security . | . . . . . Max Security . | . . . . . Squads Dispatched 1 | . . 1 . . Investigation 1 | . . 1 . . Extermination . | . . . . . Reinforcement . | . . . . . Assault . | . . . . . Garrison . | . . . . . Intercept . | . . . . . Construction Impeded . | . . . . . Haulers Reinforced . | . . . . . Stealth | -11 -10 -10 -10 -9 --------- Run | Scr Mat Min Exi Min Distress Signals . | . . . . . Communications Jammed . | . . . . . Distress Signals . | . . . . . Times Spotted 30 | . 6 2 . 22 Peak Tracking Total 22 | . 3 2 . 22 Tactical Retreats 3 | . 1 1 . 1 Traps | -11 -10 -10 -10 -9 ------- Run | Scr Mat Min Exi Min Traps Triggered . | . . . . . Indirectly . | . . . . . Trap Hack Attempts . | . . . . . Triggered . | . . . . . Disarmed . | . . . . . Reprogrammed . | . . . . . Reused . | . . . . . Traps Extracted . | . . . . . Installed . | . . . . . Triggered . | . . . . . Machines | -11 -10 -10 -10 -9 ---------- Run | Scr Mat Min Exi Min Machines Disabled . | . . . . . Max in Single Turn . | . . . . . Machines Sabotaged . | . . . . . Garrisons Compromised . | . . . . . Overloaded Fab Kills . | . . . . . Fab Network Shutdowns . | . . . . . Hacking | -11 -10 -10 -10 -9 --------- Run | Scr Mat Min Exi Min Machines Accessed 5 | . 2 2 1 . Terminals 3 | . 2 1 . . Fabricators . | . . . . . Repair Stations . | . . . . . Recycling Units . | . . . . . Scanalyzers . | . . . . . Garrison Access . | . . . . . Total Hacks 13 | . 10 2 1 . Successful 9 | . 6 2 1 . Failed 4 | . 4 . . . Catastrophic 1 | . 1 . . . Database Lockouts . | . . . . . Manual 8 | . 7 . 1 . Terminals 11 | . 10 1 . . Fabricators . | . . . . . Repair Stations . | . . . . . Recycling Units . | . . . . . Scanalyzers . | . . . . . Garrison Access . | . . . . . Terminal Hacks 8 | . 5 2 1 . Part Schematic 1 | . 1 . . . Open Door 1 | . . 1 . . Terminal Index 1 | . 1 . . . Locate Traps 1 | . 1 . . . Patrol Status 1 | . . 1 . . Hauler Manifests 1 | . 1 . . . Registered Components 1 | . 1 . . . EX-Prototype ID Bank 1 | . . . 1 . Fabricator Hacks . | . . . . . Repair Station Hacks . | . . . . . Recycling Unit Hacks . | . . . . . Scanalyzer . | . . . . . Garrison Access Hacks . | . . . . . Unauthorized Hacks 1 | . 1 . . . Terminals 1 | . 1 . . . Botnet 1 | . 1 . . . Fabricators . | . . . . . Repair Stations . | . . . . . Recycling Units . | . . . . . Scanalyzers . | . . . . . Garrison Access . | . . . . . Data Cores Recovered . | . . . . . Used . | . . . . . Hacking Detections 2 | . 2 . . . Full Trace Events . | . . . . . Feedback Events . | . . . . . Feedback Blocked . | . . . . . Robot Schematics Acquired . | . . . . . Robots Built . | . . . . . Matter . | . . . . . Time . | . . . . . Total Robot Build Rating . | . . . . . Part Schematics Acquired 1 | . 1 . . . Parts Built . | . . . . . Matter . | . . . . . Time . | . . . . . Total Part Build Rating . | . . . . . Parts Repaired . | . . . . . Time . | . . . . . Parts Recycled . | . . . . . Recycled Matter . | . . . . . Retrieved Matter . | . . . . . Retrieved Components . | . . . . . Parts Scanalyzed . | . . . . . Part Schematics Acquired . | . . . . . Parts Damaged . | . . . . . Bothacking | -11 -10 -10 -10 -9 ------------ Run | Scr Mat Min Exi Min Used RIF Installer . | . . . . . Robots Hacked . | . . . . . Non-combat . | . . . . . Combat . | . . . . . Robot Hacks Applied . | . . . . . Relay Couplers Released . | . . . . . Robots Rewired . | . . . . . Allies Hacked . | . . . . . Hacks Repelled . | . . . . . Allies | -11 -10 -10 -10 -9 -------- Run | Scr Mat Min Exi Min Total Allies . | . . . . . Largest Group . | . . . . . Highest-Rated Group . | . . . . . Highest-Rated Ally . | . . . . . Total Orders . | . . . . . Ally Attacks . | . . . . . Total Damage . | . . . . . Kills . | . . . . . Allies Corrupted . | . . . . . Allies Melted . | . . . . . Intel | -11 -10 -10 -10 -9 ------- Run | Scr Mat Min Exi Min Robot Analysis Total . | . . . . . Derelict Logs Recovered 1 | . . 1 . . Drone Launches . | . . . . . Drone Recoveries . | . . . . . Exploration | -11 -10 -10 -10 -9 ------------- Run | Scr Mat Min Exi Min Turns Passed 741 | 41 174 191 294 41 Spaces Moved 739 | 39 188 168 316 28 Core 9 | 9 . . . . Treads . | . . . . . Legs 15 | . . . . 15 Wheels 715 | 30 188 168 316 13 Hover . | . . . . . Flight . | . . . . . Fastest Speed 50 | 50 80 80 90 90 Average Speed 85 | 73 80 80 90 125 Slowest Speed 150 | 80 90 90 90 150 Overloaded Moves . | . . . . . Propulsion Burnouts . | . . . . . Robots Hopped . | . . . . . Cave-ins Triggered . | . . . . . Exploration Rate (%) 30 | 3 35 29 70 13 Regions Visited 4 Branch Regions 3 Pre-discovered Areas . | . . . . . Known Exits Taken . | . . . . . Unknown Exits Taken 4 | 1 1 1 1 . Scrap Searched 1 | . . . . 1 Spaces Dug . | . . . . . Terrain Destroyed 3 | . 3 . . . Melee . | . . . . . Projectile . | . . . . . AOE 3 | . 3 . . . Terrain Rammed . | . . . . . Walls Destroyed . | . . . . . Machines Disabled . | . . . . . Actions | -11 -10 -10 -10 -9 --------- Run | Scr Mat Min Exi Min Total 808 | 49 205 195 325 34 Wait 10 | . 3 7 . . Move 735 | 38 187 167 315 28 Hop . | . . . . . Pick Up 19 | 6 5 2 6 . Fast Attach 6 | 4 1 . . 1 Attach 7 | 1 . 3 1 2 Detach 1 | . . . . 1 Swap 4 | . 2 . 1 1 Drop 5 | . 2 . 2 1 Fire 21 | . 5 16 . . Melee . | . . . . . Ram . | . . . . . Kick . | . . . . . Crush . | . . . . . Escape Stasis . | . . . . . Rewire . | . . . . . Trap . | . . . . . Miscellaneous . | . . . . . Route ------- -11/Scrapyard -10/Materials (discovered 2 exits: [*Mat] / *Min) -10/Mines -10/Exiles -9/Mines History --------- Turn | Location | Event 6 | -11/Scrapyard | Discovered new exit (range 15) 42 | -11/Scrapyard | Entered Materials 123 | -10/Materials | Discovered new exit (range 16) 196 | -10/Materials | Discovered new exit (range 7) 216 | -10/Materials | Entered Mines 279 | -10/Mines | Learned 2 Materials zone layouts 281 | -10/Mines | Lost 3 parts (1n2w) 315 | -10/Mines | Build established: Mutant 318 | -10/Mines | Met a Derelict shopkeep closing up shop 404 | -10/Mines | Deemed a non-threat by the Exiles lab entrance 404 | -10/Mines | Discovered new exit (range 5) 407 | -10/Mines | Entered Exiles 435 | -10/Exiles | Met 8R-AWN 449 | -10/Exiles | Met EX-HEX 503 | -10/Exiles | Met EX-DEC 574 | -10/Exiles | Met EX-BIN 585 | -10/Exiles | Aligned with FarCom system 586 | -10/Exiles | Given EX-Vault access code 607 | -10/Exiles | Opened EX-Vault 613 | -10/Exiles | Found AWS/Autocannon 632 | -10/Exiles | Warned to stay clear of 0b10 Research branches 647 | -10/Exiles | Exiles lab attacked by MAIN.C 692 | -10/Exiles | Discovered new exit (range 12) 701 | -10/Exiles | Left Exiles lab with AWS/Autocannon 701 | -10/Exiles | Entered Mines 702 | -9/Mines | Assembled infested the area 707 | -9/Mines | Assisted by a Guerilla fighting off Assembled 731 | -9/Mines | Core integrity fell below 50% 741 | -9/Mines | Core integrity fell below 20% 742 | -9/Mines | Destroyed by as-82600 with Assembled Rifle Last Messages --------------- 00707_ A derelict emerges from the shadows: "You need to get out of here! I've been tracking a group of Assembled to figure out where they're coming from, and they're closing on this area, come on!" 00708_ as-08690 suffers critical hit. 00708_ as-08690 destroyed. 00709_ Wheel destroyed. 00710_ Searching scrap... 00710_ Found 28 Matter. 00710_ Found Imp. Aluminum Leg. 00710_ Found Hcp. Matter Pod. 00710_ Found Com. Wheel. 00710_ Found 21 Matter. 00710_ 9W-K8D(h) destroyed. 00711_ Acquired 10 matter. 00715_ Acquired Imp. Aluminum Leg. 00715_ as-26548 sneak attacks. 00716_ Dropped Lrg. Matter Pod. 00717_ Extracted 10 matter. 00738_ Aluminum Leg destroyed. 00741_ Knocked back. Map ----- +----------------------------------------------------+ | ??????????????????? ?????? #?? | | ??????????????????? ?????? ##? | | ??????????????????? ????? #? | | ??????????????????? #????# #? | | ???????????????????# #??## #?? | | ???????????????????# #?## #??? | | ?????????????#######=### #???? | | ?????????????# =% #???? | | ?????????????# ###""%### #??? | | ???????????????????#!#?## #?? | | ???????????????????# #??### | | ???????????????????# #?????# | | ???????????????????#%#?????? | | ???????????????????#%#??????? | | ???????????????????#=#??????? | | ???????????????????#!#???????? | | ???????????????????#!#???????? | | ?##??????????####??# #????????? | | ?# ??????#### ##?# #????????? | | ?# ?????##a ### #?????????? | | ?# ???## a""" #?????????? | | ??# #?## a """ #?????????? | | ??# ## aa"""a #####?????????? | | ??# aa a a##?????????????? | | ??# a a ##??????????????? | | ??# @ ######???????????????? | | ??# #????????????????????? | | ??# #????????????????????? | | ??## #????????????????????? | | ???## #????????????????????? | | ????## ##????????????????????? | | ?????#####?????????????????????? | | ???????????????????????????????? | | ???????????????????????????????? | | ???????????????????????????????? | | ???????????????????????????????? | | ???????????????????????????????? | | ???????????????????????????????? | | ???????????????????????????????? | | ???????????????????????????????? | | ???????????????????????????????? | | ???????????????????????????????? | | ???????????????????????????????? | | ???????????????????????????????? | | ???????????????????????????????? | | ???????????????????????????????? | | ???????????????????????????????? | | ???????????????????????????????? | | ???????????????????????????????? | | ???????????????????????????????? | +----------------------------------------------------+ Best States ------------- Heat Dissipation 25 Energy Generation 5 Energy Capacity 100 Matter Stores 300 Matter Capacity 300 Sight Range 16 Terrain Scan Density 10 Evasion (%) 44 Item Schematics ----------------- Hcp. Storage Unit | -10/Materials | Hacked Robot Schematics ------------------ None Fabricated ------------ Nothing Alien Tech Used ----------------- None Achievements -------------- None Challenges ------------ None Game ------ Seed NeutronDirtyWings Manual? 1 Play Time 00:13:59 Cumulative 247.8 hours Start 2020.11.09 @ 18:32:34 End 2020.11.09 @ 20:31:27 Sessions 1 Manual Loads 0 Difficulty Rogue Special Mode None Game No. 95 Rogue 59 Adventurer 36 Explorer 0 Win Type - Total 9 Types 9/0/0/0/0/0/0/0/0 Lore% 47 Gallery% 55 Achievement% 41 Wizard Run 0 Options --------- ASCII 0 Keyboard 1 Movement Vi Keybinds 0 Fullscreen 1 Font 18/Terminus Map View 76x50 Tactical HUD 1 Map Filters NONE Filters NONE Steam 0 RUN: d4789c42-b623-4571-b3e2-9a96991dbab3